fUSD/lending_fUSD_20240212
["ID","MTS","AMOUNT","RATE_DAILY","PERIOD"]
[313876725,1707765051256,-500.0,0.00032876,2]
[313876726,1707765051266,-500.0,0.00032876,2]
[313876727,1707765051275,-1881.77,0.00032876,2]
[313876728,1707765051284,-500.0,0.00032876,2]
[313876729,1707765051294,-500.0,0.00032876,2]
[313876730,1707765051303,-500.0,0.00032876,2]
[313876731,1707765051313,-500.0,0.00032876,2]
[313876732,1707765051322,-500.0,0.00032876,2]
[313876733,1707765051332,-500.0,0.00032876,2]
[313876734,1707765051341,-500.0,0.00032876,2]
[313876735,1707765051352,-505.36159997,0.00032876,2]
[313876736,1707765051363,-765.51,0.00032876,2]
[313876737,1707765051373,-500.0,0.00032876,2]
[313876738,1707765051383,-1577.36,0.00032876,2]
[313876739,1707765051392,-500.0,0.00032876,2]
[313876740,1707765051402,-500.0,0.00032876,2]
[313876741,1707765051412,-500.0,0.00032876,2]
[313876742,1707765051421,-500.0,0.00032876,2]
[313876743,1707765051431,-500.0,0.00032876,2]
[313876744,1707765051440,-500.0,0.00032876,2]
[313876745,1707765051450,-500.0,0.00032876,2]
[313876746,1707765051459,-831.93,0.00032876,2]
[313876747,1707765051469,-500.0,0.00032876,2]
[313876748,1707765051479,-500.0,0.00032876,2]
[313876749,1707765051488,-500.0,0.00032876,2]
[313876750,1707765051498,-2801.89,0.00032876,2]
[313876751,1707765051507,-588.38,0.00032876,2]
[313876752,1707765051517,-500.0,0.00032876,2]
[313876753,1707765051526,-500.0,0.00032876,2]
[313876754,1707765051536,-500.0,0.00032876,2]
[313876755,1707765051546,-500.0,0.00032876,2]
[313876756,1707765051555,-500.0,0.00032876,2]
[313876757,1707765051565,-500.0,0.00032876,2]
[313876758,1707765051574,-500.0,0.00032876,2]
[313876759,1707765051583,-500.0,0.00032876,2]
[313876760,1707765051593,-500.0,0.00032876,2]
[313876761,1707765051602,-522.83,0.00032876,2]
[313876762,1707765051611,-500.0,0.00032876,2]
[313876763,1707765051620,-500.0,0.00032876,2]
[313876764,1707765051630,-500.0,0.00032876,2]
[313876765,1707765051639,-500.0,0.00032876,2]
[313876766,1707765051649,-500.0,0.00032876,2]
[313876767,1707765051658,-500.0,0.00032876,2]
[313876768,1707765051668,-500.0,0.00032876,2]
[313876769,1707765051678,-500.0,0.00032876,2]
[313876770,1707765051688,-500.0,0.00032876,2]
[313876771,1707765051697,-500.0,0.00032876,2]
[313876772,1707765051706,-500.0,0.00032876,2]
[313876773,1707765051716,-158.93932571,0.00032876,2]
[313876774,1707765051725,-500.0,0.00032876,2]
[313876775,1707765051734,-500.0,0.00032876,2]
[313876776,1707765051744,-500.0,0.00032876,2]
[313876777,1707765051753,-500.0,0.00032876,2]
[313876778,1707765051763,-500.0,0.00032876,2]
[313876779,1707765051772,-500.0,0.00032876,2]
[313876780,1707765051781,-500.0,0.00032876,2]
[313876781,1707765051791,-500.0,0.00032876,2]
[313876782,1707765051800,-500.0,0.00032876,2]
[313876783,1707765051810,-500.0,0.00032876,2]
[313876784,1707765051819,-511.03,0.00032876,2]
[313876785,1707765051828,-500.0,0.00032876,2]
[313876786,1707765051837,-500.0,0.00032876,2]
[313876787,1707765051847,-857.62,0.00032876,2]
[313876788,1707765051856,-500.0,0.00032876,2]
[313876789,1707765051865,-500.0,0.00032876,2]
[313876790,1707765051874,-500.0,0.00032876,2]
[313876791,1707765051884,-500.0,0.00032876,2]
[313876792,1707765051893,-500.0,0.00032876,2]
[313876793,1707765051902,-168.56356785,0.00032876,2]
[313876794,1707765051911,-1401.94,0.00032876,2]
[313876795,1707765051921,-543.5,0.00032876,2]
[313876796,1707765051930,-500.0,0.00032876,2]
[313876797,1707765051939,-500.0,0.00032876,2]
[313876798,1707765051949,-500.0,0.00032876,2]
[313876799,1707765051958,-500.0,0.00032876,2]
[313876800,1707765051967,-500.0,0.00032876,2]
[313876801,1707765051979,-500.0,0.00032876,2]
[313876802,1707765051988,-500.0,0.00032876,2]
[313876803,1707765051998,-500.0,0.00032876,2]
[313876804,1707765052008,-2334.3,0.00032876,2]
[313876805,1707765052018,-500.0,0.00032876,2]
[313876806,1707765052027,-500.0,0.00032876,2]
[313876807,1707765052037,-500.0,0.00032876,2]
[313876808,1707765052046,-500.0,0.00032876,2]
[313876809,1707765052055,-500.0,0.00032876,2]
[313876810,1707765052064,-500.0,0.00032876,2]
[313876811,1707765052074,-500.0,0.00032876,2]
[313876812,1707765052083,-500.0,0.00032876,2]
[313876813,1707765052092,-500.0,0.00032876,2]
[313876814,1707765052101,-500.0,0.00032876,2]
[313876815,1707765052111,-500.0,0.00032876,2]
[313876816,1707765052120,-500.0,0.00032876,2]
[313876817,1707765052130,-500.0,0.00032876,2]
[313876818,1707765052139,-500.0,0.00032876,2]
[313876819,1707765052149,-500.0,0.00032876,2]
[313876820,1707765052158,-500.0,0.00032876,2]
[313876821,1707765052169,-500.0,0.00032876,2]
[313876822,1707765052180,-500.0,0.00032876,2]
[313876823,1707765052194,-500.0,0.00032876,2]
[313876824,1707765052204,-500.0,0.00032876,2]
[313876825,1707765052215,-509.81,0.00032876,2]
[313876826,1707765052224,-271.66459846,0.00032876,2]
[313876827,1707765053405,-161.31425088,0.00028022,2]
[313876828,1707765053415,-150.0,0.00031,2]
[313876829,1707765053424,-228.33540154,0.00032876,2]
[313876830,1707765053433,-500.0,0.00032876,2]
[313876831,1707765053442,-500.0,0.00032876,2]
[313876832,1707765053451,-500.0,0.00032876,2]
[313876833,1707765053460,-500.0,0.00032876,2]
[313876834,1707765053469,-500.0,0.00032876,2]
[313876835,1707765053479,-898.85,0.00032876,2]
[313876836,1707765053488,-500.0,0.00032876,2]
[313876837,1707765053497,-250.0,0.00032876,2]
[313876838,1707765053505,-500.0,0.00032876,2]
[313876839,1707765053514,-279.059146,0.00032876,2]
[313876840,1707765053523,-601.21,0.00032876,2]
[313876841,1707765053533,-500.0,0.00032876,2]
[313876842,1707765053542,-500.0,0.00032876,2]
[313876843,1707765053551,-500.0,0.00032876,2]
[313876844,1707765053560,-500.0,0.00032876,2]
[313876845,1707765053570,-1637.38,0.00032876,2]
[313876846,1707765053579,-266.85120158,0.00032876,2]
[313876847,1707765053591,-1982.43879842,0.00032876,2]
[313876848,1707765053600,-390.44697254,0.00032876,2]
[313876849,1707765053609,-500.0,0.00032876,2]
[313876850,1707765053618,-500.0,0.00032876,2]
[313876851,1707765053627,-500.0,0.00032876,2]
[313876852,1707765053637,-500.0,0.00032876,2]
[313876853,1707765053646,-500.0,0.00032876,2]
[313876854,1707765053655,-500.0,0.00032876,2]
[313876855,1707765053665,-500.0,0.00032876,2]
[313876856,1707765053675,-1063.29,0.00032876,2]
[313876857,1707765053684,-500.0,0.00032876,2]
[313876858,1707765053694,-2228.93,0.00032876,2]
[313876859,1707765053703,-500.0,0.00032876,2]
[313876860,1707765053712,-500.0,0.00032876,2]
[313876861,1707765053722,-500.0,0.00032876,2]
[313876862,1707765053731,-756.21,0.00032876,2]
[313876863,1707765053740,-500.0,0.00032876,2]
[313876864,1707765053750,-500.0,0.00032876,2]
[313876865,1707765053758,-500.0,0.00032876,2]
[313876866,1707765053767,-500.0,0.00032876,2]
[313876867,1707765053776,-500.0,0.00032876,2]
[313876868,1707765053785,-500.0,0.00032876,2]
[313876869,1707765053794,-3715.4,0.00032876,2]
[313876870,1707765053803,-500.0,0.00032876,2]
[313876871,1707765053813,-500.0,0.00032876,2]
[313876872,1707765053822,-500.0,0.00032876,2]
[313876873,1707765053831,-500.0,0.00032876,2]
[313876874,1707765053840,-1519.01,0.00032876,2]
[313876875,1707765053850,-1441.35,0.00032876,2]
[313876876,1707765053860,-500.0,0.00032876,2]
[313876877,1707765053869,-500.0,0.00032876,2]
[313876878,1707765053878,-629.14,0.00032876,2]
[313876879,1707765053887,-500.0,0.00032876,2]
[313876880,1707765053896,-500.0,0.00032876,2]
[313876881,1707765053905,-500.0,0.00032876,2]
[313876882,1707765053915,-500.0,0.00032876,2]
[313876883,1707765053923,-764.1,0.00032876,2]
[313876884,1707765053933,-500.0,0.00032876,2]
[313876885,1707765053942,-614.52,0.00032876,2]
[313876886,1707765053951,-500.0,0.00032876,2]
[313876887,1707765053960,-500.0,0.00032876,2]
[313876888,1707765053968,-500.0,0.00032876,2]
[313876889,1707765053977,-500.0,0.00032876,2]
[313876890,1707765053986,-500.0,0.00032876,2]
[313876891,1707765053995,-718.16,0.00032876,2]
[313876892,1707765054004,-500.0,0.00032876,2]
[313876893,1707765054013,-500.0,0.00032876,2]
[313876894,1707765054022,-1030.78,0.00032876,2]
[313876895,1707765054031,-2148.13,0.00032876,2]
[313876896,1707765054040,-704.75,0.00032876,2]
[313876897,1707765054049,-500.0,0.00032876,2]
[313876898,1707765054058,-500.0,0.00032876,2]
[313876899,1707765054067,-500.0,0.00032876,2]
[313876900,1707765054077,-500.0,0.00032876,2]
[313876901,1707765054086,-500.0,0.00032876,2]
[313876902,1707765054095,-500.0,0.00032876,2]
[313876903,1707765054104,-556.21,0.00032876,2]
[313876904,1707765054113,-500.0,0.00032876,2]
[313876905,1707765054122,-500.0,0.00032876,2]
[313876906,1707765054131,-500.0,0.00032876,2]
[313876907,1707765054140,-500.0,0.00032876,2]
[313876908,1707765054148,-2036.95,0.00032876,2]
[313876909,1707765054158,-500.0,0.00032876,2]
[313876910,1707765054169,-165.23368045,0.00032876,2]
[313876911,1707765054180,-230.1447399,0.00032876,2]
[313876912,1707765054192,-500.0,0.00032876,2]
[313876913,1707765054201,-500.0,0.00032876,2]
[313876914,1707765054210,-500.0,0.00032876,2]
[313876915,1707765054219,-500.0,0.00032876,2]
[313876916,1707765054228,-500.0,0.00032876,2]
[313876917,1707765054238,-500.0,0.00032876,2]
[313876918,1707765054249,-500.0,0.00032876,2]
[313876919,1707765054259,-500.0,0.00032876,2]
[313876920,1707765054271,-817.89,0.00032876,2]
[313876921,1707765054282,-1812.34,0.00032876,2]
[313876922,1707765054290,-500.0,0.00032876,2]
[313876923,1707765054299,-500.0,0.00032876,2]
[313876924,1707765054309,-1145.22,0.00032876,2]
[313876925,1707765054318,-408.33,0.00032876,2]
[313876926,1707765054326,-500.0,0.00032876,2]
[313876927,1707765054336,-591.57,0.00032876,2]
[313876928,1707765054345,-500.0,0.00032876,2]
[313876929,1707765054357,-3116.01,0.00032876,2]
[313876930,1707765054366,-500.0,0.00032876,2]
[313876931,1707765054375,-500.0,0.00032876,2]
[313876932,1707765054385,-1100.44,0.00032876,2]
[313876933,1707765054393,-500.0,0.00032876,2]
[313876934,1707765054402,-500.0,0.00032876,2]
[313876935,1707765054413,-500.0,0.00032876,2]
[313876936,1707765054422,-284.7637022,0.00032876,2]
[313876937,1707765054431,-500.0,0.00032876,2]
[313876938,1707765054440,-3043.14,0.00032876,2]
[313876939,1707765054449,-845.77,0.00032876,2]
[313876940,1707765054458,-500.0,0.00032876,2]
[313876941,1707765054467,-500.0,0.00032876,2]
[313876942,1707765054476,-500.0,0.00032876,2]
[313876943,1707765054485,-200.41305144,0.00032876,2]
[313876944,1707765054520,255.66481378,0.0002,2]
[313876945,1707765054533,-250.97061565,0.00032876,2]
[313876946,1707765054542,-897.97,0.00032876,2]
[313876947,1707765054551,-390.91587031,0.00032876,2]
[313876948,1707765054563,-602.8075711,0.00032876,2]
[313876949,1707765054658,284.21796562,0.0002,2]
[313876950,1707765054900,6114.15975207,0.0002,2]
[313876951,1707765054989,167.13822699,0.0002,2]
[313876952,1707765055182,612.608144,0.00021,2]
[313876953,1707765055227,2333.21880977,0.0002,2]
[313876954,1707765056378,4676.62134263,0.0002,2]
[313876956,1707765067986,612.608144,0.00021,2]
[313876957,1707765071883,284.21796562,0.0002,2]
[313876958,1707765072377,2330.82603743,0.0002,2]
[313876959,1707765074181,443.88184982,0.0002,2]
[313876960,1707765075771,6114.15975207,0.0002,2]
[313876963,1707765097873,186.02886581,0.0002,2]
[313876964,1707765099771,857.57137586,0.0002,2]
[313876974,1707765148499,2333.21880977,0.0002,2]
[313876975,1707765151993,612.890857,0.00021,2]
[313876976,1707765164388,2417.6340842,0.0002,2]
[313876977,1707765171997,156.33247905,0.00021,2]
[313876986,1707765319738,158.19,2.5e-06,2]
[313876987,1707765365122,818.35927847,0.0002,2]
[313876988,1707765368231,362.00852423,5e-05,2]
[313876989,1707765374990,404.74039498,0.0001,2]
[313876990,1707765375924,494.07788319,0.00019,2]
[313876991,1707765376758,1696.3107292,0.0002,2]
[313876992,1707765380589,155.0,9e-05,2]
[313876993,1707765389336,268.85327237,5e-05,2]
[313876994,1707765394574,156.52902322,9e-05,2]
[313876995,1707765396741,1696.3107292,0.0002,2]
[313876996,1707765400175,260.9149056,2.5e-06,2]
[313876997,1707765411351,227.4759559,9e-05,2]
[313876998,1707765420751,225.65083925,0.0002,2]
[313876999,1707765428779,294.53992659,0.000199,2]
[313877000,1707765443904,2232.2179096,0.0002,2]
[313877001,1707765447706,363.79092358,0.0002,2]
[313877002,1707765450836,869.23510328,0.0002,2]
[313877003,1707765451943,283.85892407,0.0002,2]
[313877004,1707765452815,285.05375891,9e-05,2]
[313877028,1707765903810,206.0,0.00022361,2]
[313877029,1707765974267,200.0,0.00021804,2]
[313877036,1707766155240,200.0,0.00021695,2]
[313877071,1707766231948,-155.0,0.00022677,2]
[313877073,1707766231959,-156.44051922,0.00022678,2]
[313877076,1707766231972,-579.83243711,0.00022678,2]
[313877089,1707766232205,-2917.18273564,0.00022679,2]
[313877090,1707766232215,-21.27530834,0.00022684,2]
[313877091,1707766232227,-181.94989198,0.00022684,2]
[313877092,1707766232237,-157.93570004,0.00022687,2]
[313877093,1707766232246,-150.0,0.00022894,2]
[313877094,1707766232255,-1484.93690798,0.00022895,2]
[313877095,1707766232267,-1830.05788876,0.00022895,2]
[313877096,1707766232276,-170.14,0.00023,2]
[313877097,1707766232286,-332.32,0.00024145,2]
[313877098,1707766232295,-1272.11518849,0.0002436,2]
[313877099,1707766232305,-234.0500178,0.00024656,2]
[313877102,1707766232314,-198.54494619,0.00024656,2]
[313877105,1707766232325,-301.44505381,0.00024656,2]
[313877106,1707766232335,-170.61653395,0.0002487,5]
[313877107,1707766232346,-35.38346605,0.0002487,5]
[313877108,1707766232355,-200.0,0.00025,2]
[313877109,1707766232365,-1250.0,0.00025,3]
[313877110,1707766232373,-157.93570001,0.00025091,2]
[313877111,1707766232383,-150.0,0.00025097,2]
[313877112,1707766232392,-160.77154033,0.00025645,2]
[313877113,1707766232402,-273.89,0.00025726,2]
[313877114,1707766232410,-5649.73969192,0.00025786,2]
[313877115,1707766232422,-320.6391067,0.00025786,2]
[313877116,1707766232433,-9821.51120138,0.00025786,2]
[313877117,1707766232442,-1316.2,0.00025826,2]
[313877118,1707766232451,-1017.34,0.00025834,2]
[313877119,1707766232461,-211.64,0.0002584,2]
[313877120,1707766232470,-203.22520032,0.00025952,2]
[313877121,1707766232479,-492.44992588,0.00026052,2]
[313877122,1707766232491,-4805.83630706,0.00026052,2]
[313877123,1707766232511,-5857.54376706,0.00026052,2]
[313877124,1707766232524,-250.0,0.00026086,2]
[313877125,1707766232534,-5929.49,0.00026097,2]
[313877126,1707766232543,-250.0,0.00026099,2]
[313877127,1707766232552,-164.21,0.00026099,2]
[313877128,1707766232563,-685.16,0.00026142,2]
[313877129,1707766232572,-332.32,0.00026409,2]
[313877130,1707766232581,-203.48,0.00026517,2]
[313877131,1707766232591,-482.15,0.00026517,2]
[313877132,1707766232601,-750.0,0.00026517,2]
[313877133,1707766232611,-150.99,0.00026768,2]
[313877134,1707766232621,-154.2,0.00026967,2]
[313877135,1707766232630,-1195.5356053,0.0002699,2]
[313877136,1707766232640,-155.0,0.00026998,2]
[313877137,1707766232650,-1300.0,0.00027,3]
[313877138,1707766232659,-273.89,0.00027013,2]
[313877139,1707766232669,-167.05,0.00027031,2]
[313877140,1707766232678,-833.57140238,0.000271,2]
[313877141,1707766232688,-154.2,0.00027142,2]
[313877142,1707766232697,-154.2,0.00027318,2]
[313877143,1707766232706,-206.0,0.0002738,9]
[313877144,1707766232715,-1000.0,0.000274,2]
[313877145,1707766232724,-1316.2,0.0002747,2]
[313877146,1707766232733,-154.2,0.00027494,2]
[313877147,1707766232742,-157.93570001,0.00027496,2]
[313877148,1707766232753,-154.2,0.00027669,2]
[313877149,1707766232763,-203.48,0.00027843,2]
[313877150,1707766232777,-154.2,0.00027845,2]
[313877151,1707766232786,-1000.0,0.000279,2]
[313877152,1707766232795,-974.3275653,0.00027921,2]
[313877153,1707766232804,-550.61358106,0.00028,2]
[313877154,1707766232813,-800.8,0.0002801,10]
[313877155,1707766232822,-158.05,0.0002801,2]
[313877156,1707766232831,-409.08753031,0.00028018,2]
[313877157,1707766232840,-161.31425088,0.00028019,2]
[313877158,1707766232850,-493177.02634642,0.0002802,2]
[313877159,1707766232859,-154.2,0.00028021,2]
[313877160,1707766232868,-154.2,0.00028196,2]
[313877161,1707766232878,-1000.0,0.00028222,2]
[313877162,1707766232888,-2811.85,0.00028237,2]
[313877163,1707766232898,-273.89,0.00028299,2]
[313877164,1707766232907,-154.2,0.00028372,2]
[313877165,1707766232916,-192.57104392,0.00028672,6]
[313877166,1707766232926,-332.32,0.00028672,2]
[313877167,1707766232935,-974.32756525,0.00028808,2]
[313877168,1707766232944,-500.0,0.00029,2]
[313877169,1707766232953,-1350.0,0.00029,3]
[313877170,1707766232962,-177.24,0.00029,2]
[313877171,1707766232972,-1316.2,0.00029114,2]
[313877172,1707766232981,-203.48,0.00029169,2]
[313877173,1707766232990,-203.11808733,0.00029297,2]
[313877174,1707766233000,-800.0,0.000293,10]
[313877175,1707766233009,-1600.0,0.000294,10]
[313877176,1707766233020,-2400.0,0.000295,10]
[313877177,1707766233032,-353.88,0.00029548,2]
[313877178,1707766233041,-273.89,0.00029585,2]
[313877179,1707766233050,-155.15714118,0.00029597,2]
[313877180,1707766233059,-155.0,0.00029597,2]
[313877181,1707766233069,-388.36932466,0.00029597,2]
[313877182,1707766233078,-191.56467231,0.00029597,2]
[313877183,1707766233088,-155.0,0.00029597,2]
[313877184,1707766233097,-155.0,0.00029598,2]
[313877185,1707766233108,-921.14475538,0.00029598,2]
[313877186,1707766233120,-155.44597949,0.00029598,2]
[313877187,1707766233129,-155.39275973,0.00029599,2]
[313877188,1707766233139,-155.49345059,0.00029599,2]
[313877189,1707766233148,-24833.0,0.000296,2]
[313877190,1707766233157,-3300.0,0.000296,10]
[313877191,1707766233167,-974.32756525,0.00029694,2]
[313877192,1707766233176,-4100.0,0.000297,10]
[313877193,1707766233185,-800.0,0.000298,10]
[313877194,1707766233195,-159.81169846,0.000298,2]
[313877195,1707766233204,-677.21514996,0.00029881,2]
[313877196,1707766233214,-206.0,0.00029889,13]
[313877197,1707766233225,-677.21514996,0.00029891,2]
[313877198,1707766233235,-1996.8931,0.000299,2]
[313877199,1707766233244,-1748.61,0.000299,2]
[313877200,1707766233254,-9342.14,0.000299,2]
[313877201,1707766233263,-39509.32066583,0.000299,2]
[313877202,1707766233280,-525.49011292,0.000299,2]
[313877203,1707766233289,-157.93570001,0.000299,2]
[313877204,1707766233301,-6424.15918707,0.000299,2]
[313877205,1707766233313,-770.0,0.000299,2]
[313877206,1707766233327,-2147.99081293,0.000299,2]
[313877207,1707766233337,-800.0,0.000299,10]
[313877208,1707766233346,-874.3,0.000299,2]
[313877209,1707766233355,-217.71684084,0.000299,2]
[313877210,1707766233364,-437.15,0.000299,2]
[313877211,1707766233374,-159.81169846,0.000299,2]
[313877212,1707766233383,-1288.2469029,0.000299,2]
[313877213,1707766233392,-1102.0793487,0.000299,2]
[313877214,1707766233401,-97.2207326,0.000299,2]
[313877215,1707766233413,-254.21000005,0.000299,2]
[313877216,1707766233424,-311.08000015,0.000299,2]
[313877217,1707766233435,-409.47900183,0.000299,2]
[313877218,1707766233447,-272.72700117,0.000299,2]
[313877219,1707766233464,-2431.44335424,0.000299,2]
[313877220,1707766233475,-639.29473813,0.000299,2]
[313877221,1707766233487,-904.42837593,0.000299,2]
[313877222,1707766233497,-95.57162407,0.000299,2]
[313877223,1707766233513,-581.64352589,0.000299,2]
[313877224,1707766233523,-437.15,0.000299,2]
[313877225,1707766233532,-3252.25074233,0.000299,2]
[313877226,1707766233543,-973.32883742,0.000299,2]
[313877227,1707766233555,-15561.86277729,0.000299,2]
[313877228,1707766233565,-3997.31363702,0.000299,2]
[313877229,1707766233574,-3241.75512591,0.00029997,2]
[313877230,1707766233584,-204.37360548,0.00029998,2]
[313877231,1707766233593,-4266.85156024,0.00029998,2]
[313877232,1707766233602,-338.86703874,0.00029998,2]
[313877233,1707766233611,-155.18134939,0.00029998,2]
[313877234,1707766233620,-286.37979724,0.00029998,2]
[313877235,1707766233629,-1406.21419992,0.00029998,2]
[313877236,1707766233639,-413.55100587,0.00029998,2]
[313877237,1707766233649,-155.0,0.00029998,2]
[313877238,1707766233658,-631.10009728,0.00029998,2]
[313877239,1707766233667,-8917.97112772,0.00029999,2]
[313877248,1707766239151,-1200.0,0.00029999,2]
[313877249,1707766239209,-289.30814126,0.00029999,2]
[313877250,1707766239267,-2235.87409787,0.00029999,2]
[313877251,1707766239377,-770.6725951,0.00029999,2]
[313877252,1707766239489,-3699.40129594,0.00029999,2]
[313877305,1707766241131,-296.12134139,0.00029999,2]
[313877306,1707766241189,-797.95569169,0.00029999,2]
[313877307,1707766241239,-6368.79979363,0.00029999,2]
[313877308,1707766241248,-500.0,0.00029999,2]
[313877309,1707766241257,-500.0,0.00029999,2]
[313877310,1707766241266,-210.40039498,0.00029999,2]
[313877311,1707766241275,-500.0,0.00029999,2]
[313877312,1707766241284,-500.0,0.00029999,2]
[313877313,1707766241294,-500.0,0.00029999,2]
[313877314,1707766241303,-500.0,0.00029999,2]
[313877315,1707766241311,-500.0,0.00029999,2]
[313877316,1707766241332,-500.0,0.00029999,2]
[313877317,1707766241341,-500.0,0.00029999,2]
[313877318,1707766241352,-500.0,0.00029999,2]
[313877319,1707766241363,-166.12816276,0.00029999,2]
[313877320,1707766241374,-500.0,0.00029999,2]
[313877321,1707766241384,-500.0,0.00029999,2]
[313877322,1707766241393,-232.36780901,0.00029999,2]
[313877323,1707766241403,-461.04708188,0.00029999,2]
[313877324,1707766241412,-500.0,0.00029999,2]
[313877325,1707766241422,-500.0,0.00029999,2]
[313877326,1707766241431,-500.0,0.00029999,2]
[313877327,1707766241440,-500.0,0.00029999,2]
[313877328,1707766241450,-500.0,0.00029999,2]
[313877329,1707766241459,-541.93042202,0.00029999,2]
[313877330,1707766241469,-500.0,0.00029999,2]
[313877331,1707766241479,-500.0,0.00029999,2]
[313877332,1707766241490,-500.0,0.00029999,2]
[313877333,1707766241501,-545.19081006,0.00029999,2]
[313877334,1707766241510,-500.0,0.00029999,2]
[313877335,1707766241523,-500.0,0.00029999,2]
[313877336,1707766241534,-500.0,0.00029999,2]
[313877337,1707766241544,-500.0,0.00029999,2]
[313877338,1707766241557,-304.16742123,0.00029999,2]
[313877339,1707766241567,-500.0,0.00029999,2]
[313877340,1707766241577,-500.0,0.00029999,2]
[313877341,1707766241587,-500.0,0.00029999,2]
[313877342,1707766241598,-500.0,0.00029999,2]
[313877343,1707766241608,-500.0,0.00029999,2]
[313877344,1707766241617,-552.62175722,0.00029999,2]
[313877345,1707766241626,-500.0,0.00029999,2]
[313877346,1707766241636,-500.0,0.00029999,2]
[313877347,1707766241646,-500.0,0.00029999,2]
[313877348,1707766241656,-500.0,0.00029999,2]
[313877349,1707766241666,-500.0,0.00029999,2]
[313877350,1707766241676,-500.0,0.00029999,2]
[313877351,1707766241686,-500.0,0.00029999,2]
[313877352,1707766241696,-500.0,0.00029999,2]
[313877353,1707766241705,-500.0,0.00029999,2]
[313877354,1707766241716,-500.0,0.00029999,2]
[313877355,1707766241726,-500.0,0.00029999,2]
[313877356,1707766241736,-500.0,0.00029999,2]
[313877357,1707766241746,-500.0,0.00029999,2]
[313877358,1707766241760,-500.0,0.00029999,2]
[313877359,1707766241772,-500.0,0.00029999,2]
[313877360,1707766241783,-500.0,0.00029999,2]
[313877361,1707766241794,-500.0,0.00029999,2]
[313877362,1707766241804,-500.0,0.00029999,2]
[313877363,1707766241814,-500.0,0.00029999,2]
[313877364,1707766241824,-500.0,0.00029999,2]
[313877365,1707766241833,-500.0,0.00029999,2]
[313877366,1707766241844,-500.0,0.00029999,2]
[313877367,1707766241854,-500.0,0.00029999,2]
[313877368,1707766241864,-500.0,0.00029999,2]
[313877369,1707766241874,-500.0,0.00029999,2]
[313877370,1707766241884,-500.0,0.00029999,2]
[313877371,1707766241894,-500.0,0.00029999,2]
[313877372,1707766241904,-500.0,0.00029999,2]
[313877373,1707766241914,-500.0,0.00029999,2]
[313877374,1707766241925,-500.0,0.00029999,2]
[313877375,1707766241937,-500.0,0.00029999,2]
[313877376,1707766241949,-500.0,0.00029999,2]
[313877377,1707766241958,-500.0,0.00029999,2]
[313877378,1707766241969,-500.0,0.00029999,2]
[313877379,1707766241978,-500.0,0.00029999,2]
[313877380,1707766241987,-500.0,0.00029999,2]
[313877381,1707766241997,-500.0,0.00029999,2]
[313877382,1707766242007,-500.0,0.00029999,2]
[313877383,1707766242017,-500.0,0.00029999,2]
[313877384,1707766242030,-500.0,0.00029999,2]
[313877385,1707766242040,-500.0,0.00029999,2]
[313877386,1707766242050,-500.0,0.00029999,2]